Workbook

Sheet NSU
B1: Tiina Saarenketo | E1: 1.5.1964
B2: SUPERPESIS | E2: Runkosarja | I2: Kärkilyönnit (KL), pesänvälit | Q2: Runkosarja | U2: Ylempi loppusarja | AB2: Ylempi loppusarja | AG2: Play off, voitot, voittoprosentti | AL2: Arvo-ottelut ja mitalit
B3: Vuosi | C3: Sija | D3: Seura | E3: OTT | F3: KUN | G3: LÖI | H3: TOI | I3: KL | J3: 0 > 1 | K3: 1 > 2 | L3: 2 > 3 | M3: 3 > k | N3: KL-% | P3: LÖI | Q3: TOI | R3: L+T | S3: KL | U3: OTT | V3: KUN | W3: LÖI | X3: TOI | Y3: KL | Z3: KL-% | AB3: LÖI | AC3: TOI | AD3: L+T | AE3: KL | AG3: Puolivälierät | AH3: Välierät | AI3: Pronssi | AJ3: Finaalit | AL3: IL | AM3: LL | AN3: Cup | AO3: K | AP3: H | AQ3: P
B4: 1978 | C4: 5.-6. | D4: Kiri | E4: 0 | F4: 0 | G4: 0 | H4: 0 | U4: 2
B5: 1979 | C5: 9.-10. | D5: Kiri | E5: 9 | F5: 0 | G5: 2 | H5: 9
B6: 1980 | C6: 3. | D6: Kiri | E6: 8 | F6: 0 | G6: 5 | H6: 9 | U6: 4 | V6: 0 | W6: 1 | X6: 1 | AQ6: 1
B7: 1981 | C7: 8. | D7: Kiri | E7: 14 | F7: 0 | G7: 2 | H7: 6 | I7: 52 | J7: 9 | K7: 15 | L7: 21 | M7: 1 | N7: 73.4 % | O7: =PRODUCT(I7/N7) -> 70.80851064
B8: 1982 | C8: 8. | D8: Kiri | E8: 14 | F8: 0 | G8: 1 | H8: 14 | I8: 35 | J8: 6 | K8: 13 | L8: 17 | M8: 2 | N8: 57.8 % | O8: 60.54054054
B9: 1983 | C9: 4. | D9: Kiri | E9: 15 | F9: 1 | G9: 8 | H9: 18 | I9: 57 | J9: 7 | K9: 24 | L9: 14 | M9: 9 | N9: 55.7 % | O9: 102.3888889 | AL9: 1
B10: 1984 | C10: 5. | D10: Kiri | E10: 18 | F10: 1 | G10: 18 | H10: 25 | I10: 101 | J10: 10 | K10: 38 | L10: 36 | M10: 19 | N10: 68.7 % | O10: 147.0873786 | T10: =PRODUCT(L10/S10) ->  | AF10: =PRODUCT(#REF!/AE10) -> 
B11: 1985 | C11: 5. | D11: Kiri | E11: 18 | F11: 2 | G11: 10 | H11: 22 | I11: 81 | J11: 18 | K11: 26 | L11: 25 | M11: 12 | N11: 62.3 % | O11: 130 | AF11: =PRODUCT(#REF!/AE11) -> 
B12: 1986 | C12: 6. | D12: Kiri | E12: 18 | F12: 7 | G12: 19 | H12: 26 | I12: 92 | J12: 21 | K12: 18 | L12: 27 | M12: 26 | N12: ---- | AF12: =PRODUCT(#REF!/AE12) ->  | AL12: 1
B13: 1987 | C13: 4. | D13: Roihu | E13: 18 | F13: 0 | G13: 25 | H13: 8 | I13: 78 | J13: 5 | K13: 20 | L13: 28 | M13: =PRODUCT(F13+G13) -> 25 | N13: ---- | AF13: =PRODUCT(#REF!/AE13) ->  | AL13: 1
B14: 1988 | C14: 2. | D14: Roihu | E14: 18 | F14: 1 | G14: 31 | H14: 17 | I14: 80 | J14: 8 | K14: 12 | L14: 28 | M14: =PRODUCT(F14+G14) -> 32 | N14: ---- | AF14: =PRODUCT(#REF!/AE14) ->  | AJ14: 10-16 Virkiä | AL14: 1 | AM14: 1 | AP14: 1
B15: 1989 | C15: 2. | D15: ViU | E15: 18 | F15: 3 | G15: 30 | H15: 39 | I15: 139 | J15: 17 | K15: 40 | L15: 49 | M15: =PRODUCT(F15+G15) -> 33 | N15: ---- | P15: 8. | Q15: 7. | R15: 3. | S15: 2. | AF15: =PRODUCT(#REF!/AE15) ->  | AH15: 24-16 Tarmo | AJ15: 9-23 Kiri | AL15: 1 | AM15: 1 | AN15: 1 | AP15: 1
B16: 1990 | C16: 1. | D16: ViU | E16: 22 | F16: 7 | G16: 53 | H16: 46 | I16: 168 | J16: 12 | K16: 34 | L16: 62 | M16: 60 | N16: 75.7 % | O16: =PRODUCT(I16/N16) -> 221.9286658 | P16: 4. | Q16: 10. | R16: 6. | S16: 8. | AF16: =PRODUCT(#REF!/AE16) ->  | AH16: 2-1 Kiri | AJ16: 2-0 Virkiä | AL16: 1 | AM16: 1 | AN16: 1 | AO16: 1
B17: 1991 | C17: 5. | D17: Kiri | E17: 22 | F17: 2 | G17: 39 | H17: 41 | I17: 147 | J17: 15 | K17: 41 | L17: 50 | M17: =SUM(F17+G17) -> 41 | N17: 66.5 % | O17: 221.0526316 | R17: 7. | S17: 8. | AG17: 1-2 Virkiä | AL17: 1 | AM17: 1
B18: 1992 | C18: 6. | D18: Kiri | E18: 22 | F18: 2 | G18: 17 | H18: 39 | I18: 141 | J18: 29 | K18: 61 | L18: 32 | M18: =SUM(F18+G18) -> 19 | N18: 68.4 % | O18: 206.1403509 | AG18: 0-2 ViU | AL18: 1
B19: 1993 | C19: 2. | D19: SiiPe | E19: 24 | F19: 3 | G19: 37 | H19: 24 | I19: 160 | J19: 19 | K19: 46 | L19: 55 | M19: =SUM(F19+G19) -> 40 | N19: 63.5 % | O19: 251.9685039 | S19: 6. | T19: =PRODUCT(L19/S19) ->  | AG19: 2-1 ViU | AH19: 2-1 ViPa | AJ19: 0-2 Virkiä | AL19: 1 | AP19: 1
B20: 1994 | C20: 5. | D20: Kiri | E20: 24 | F20: 5 | G20: 30 | H20: 33 | I20: 139 | J20: 19 | K20: 35 | L20: 50 | M20: 35 | N20: 65.3 % | O20: 212.863706 | R20: 8. | S20: 5. | AF20: =PRODUCT(#REF!/AE20) ->  | AG20: 0-2 Virkiä | AL20: 1
B21: 1995 | C21: 3. | D21: Kiri | E21: 22 | F21: 1 | G21: 20 | H21: 33 | I21: 137 | J21: 15 | K21: 27 | L21: 74 | M21: 21 | N21: 63.7 % | O21: 215.0706436 | AF21: =PRODUCT(#REF!/AE21) ->  | AG21: 3-1 Virkiä | AH21: 0-3 Lippo | AI21: 2-0 ViPa | AL21: 1 | AQ21: 1
B22: Yhteensä | E22: =SUM(E4:E21) -> 304 | F22: 35 | G22: 347 | H22: 409 | I22: 1607 | J22: 210 | K22: 450 | L22: 568 | M22: 375 | N22: =PRODUCT(1218/O22) -> 66.2 % | O22: =SUM(O7:O21) -> 1839.849821 | P22: 0-0-0 | Q22: 0-0-0 | R22: 0-0-1 | S22: 0-1-0 | U22: =SUM(U4:U21) -> 6 | V22: 0 | W22: 1 | X22: 1 | Y22: 0 | AA22: =SUM(AA13:AA21) -> 0 | AB22: 0-0-0 | AC22: 0-0-0 | AD22: 0-0-0 | AE22: 0-0-0 | AG22: 2/5 40% | AH22: 3/4 75% | AI22: 1/1 100% | AJ22: 1/4 25% | AL22: 11 | AM22: 4 | AN22: 2 | AO22: 1 | AP22: 3 | AQ22: 2
B23: Pesispörssi | D23: 1839.7
B25: URA SUPERISSA | E25: OTT | F25: KUN | G25: LÖI | H25: TOI | I25: KL | K25: ka/L | L25: ka/T | M25: ka/KL | N25: K - % | P25: ENSIMMÄISET RUNKOSARJASSA
B26: Runkosarja | E26: =PRODUCT(E22) -> 304 | F26: =PRODUCT(F22) -> 35 | G26: =PRODUCT(G22) -> 347 | H26: =PRODUCT(H22) -> 409 | I26: =PRODUCT(I22) -> 1607 | K26: =PRODUCT((F26+G26)/E26) -> 1.26 | L26: =PRODUCT(H26/E26) -> 1.35 | M26: =PRODUCT(I26/E26) -> 5.29 | N26: =PRODUCT(N22) -> 66.2 % | O26: =PRODUCT(O22) -> 1839.849821 | P26: Ottelu | R26: 20.05. 1979 SMJ - Kiri 5-6 | Y26: 1. ottelu | AB26: 15 v 0 kk 19 pv
B27: Ylempi loppusarja | E27: =PRODUCT(U22) -> 6 | F27: =PRODUCT(V22) -> 0 | G27: =PRODUCT(W22) -> 1 | H27: =PRODUCT(X22) -> 1 | I27: =PRODUCT(Y22) -> 0 | K27: =PRODUCT((F27+G27)/E27) -> 0.17 | L27: =PRODUCT(H27/E27) -> 0.17 | O27: =PRODUCT(I27/N27) ->  | P27: Lyöty | R27: 10.06. 1979 Kiri - TU 13-1 | Y27: 5. ottelu | AB27: 15 v 1 kk 9 pv
B28: Alempi loppusarja | E28: 4 | F28: =PRODUCT(AH22) -> 0 | G28: =PRODUCT(AI22) -> 0 | H28: 7 | I28: =PRODUCT(AK22) -> 0 | K28: =PRODUCT((F28+G28)/E28) -> 0.00 | L28: =PRODUCT(H28/E28) -> 1.75 | P28: Tuotu | R28: 20.05. 1979 SMJ - Kiri 5-6 | Y28: 1. ottelu | AB28: 15 v 0 kk 19 pv
B29: KAIKKI | E29: =SUM(E26:E28) -> 314 | F29: =SUM(F26:F28) -> 35 | G29: =SUM(G26:G28) -> 348 | H29: =SUM(H26:H28) -> 417 | I29: =SUM(I26:I28) -> 1607 | K29: =PRODUCT((F29+G29)/E29) -> 1.22 | L29: =PRODUCT(H29/E29) -> 1.33 | M29: 5.29 | O29: =SUM(O26:O28) ->  | P29: Kunnari | R29: 21.07. 1983 Kiri - IT 14-8 | Y29: 62. ottelu | AB29: 19 v 2 kk 20 pv
B31: Vuoden pesäpalloilija 1990
B33: Seurat | D33: Kiri = Jyväskylän Kiri (1930) | J33: Roihu (1957) | N33: ViU = Viinijärven Urheilijat (1914) | V33: SiiPe = Siilinjärven Pesis (1987)

Sheet Arvo-ottelut
B1: ITÄ - LÄNSI - KORTTI
B2: Tiina Saarenketo | C2: 1.5.1964
B3: NAISET | C3: Itä - Länsi, tulos | D3: Joukkue | E3: Seura | G3: V | H3: T | I3: H | J3: Up. | K3: Lj. | L3: Palk. | M3: O | N3: K | O3: L | P3: T | Q3: KL | R3: 1 | S3: 2 | T3: 3 | U3: k | V3: KL-% | W3: Pelinjohtaja | X3: Yleisöä
B4: 20.08. 1983 Tampere | C4: 9-8 | D4: Itä | E4: Kiri | G4: 1 | K4: vai | M4: 1 | Q4: 0/0 | V4: ---- | W4: Ali Lindström | X4: 620
B5: 24.08. 1986 Stadion, Helsinki | C5: 0-1 | D5: Itä | E5: Kiri | I5: 1 | J5: 3p | M5: 1 | W5: Ali Lindström | X5: 8000
B6: 08.08. 1987 Stadion, Helsinki | C6: 3-2 | D6: Itä | E6: Kiri | G6: 1 | J6: 3v | K6: 8 | M6: 1 | Q6: 2/4 | R6: 0/2 | T6: 2/2 | V6: 50.0 % | W6: Heikki Kauppinen | X6: 4870
B7: 06.08. 1988 Ikaalinen | C7: 5-14 | D7: Itä | E7: Roihu | I7: 1 | J7: 3v | K7: 6 | L7: II p | M7: 1 | O7: 2 | Q7: 4/7 | R7: 1/2 | S7: 1/1 | T7: 2/2 | U7: 0/2 | V7: 57.1 % | W7: Kosti Parviainen | X7: 1501
B8: 22.07. 1989 Viinijärvi | C8: 8-5 | D8: Itä | E8: Kiri | G8: 1 | J8: s | K8: 3 | M8: 1 | N8: 1 | P8: 3 | Q8: 5/7 | R8: 1/2 | S8: 2/3 | T8: 1/1 | U8: 1/1 | V8: 71.4 % | W8: Jouni Vatanen | X8: 2076
B9: 12.08. 1990 Ulvila | C9: 10-1 | D9: Itä | E9: ViU | G9: 1 | J9: 3p | K9: 5 | M9: 1 | O9: 1 | Q9: 4/7 | R9: 0/1 | T9: 3/3 | U9: 1/3 | V9: 57.1 % | W9: Ali Lindström | X9: 2783
B10: 20.07. 1991 Oulu | C10: 5-12 | D10: Itä | E10: Kiri | I10: 1 | J10: s | K10: 3 | M10: 1 | O10: 1 | Q10: 4/9 | R10: 0/1 | S10: 1/4 | T10: 2/2 | U10: 1/2 | V10: 44.4 % | W10: Petri Kaijansinkko | X10: 3495
B11: 27.06. 1992 Vihti | C11: 9-10 | D11: Itä | E11: Kiri | I11: 1 | J11: 3p | K11: 6 | L11: II p | M11: 1 | O11: 2 | P11: 1 | Q11: 4/6 | R11: 1/1 | T11: 1/1 | U11: 2/4 | V11: 66.7 % | W11: Jari Haapanen | X11: 2430
B12: 24.07. 1993 Sotkamo | C12: 15-21 | D12: Itä | E12: Kiri | I12: 1 | J12: 1v | K12: 4 | M12: 1 | N12: 2 | P12: 4 | Q12: 9/12 | R12: 2/2 | S12: 2/2 | T12: 3/4 | U12: 2/4 | V12: 75.0 % | W12: Markku Kiiski | X12: 3799
B13: 23.07. 1994 Loimaa | C13: 2-0 (4-2, 3-0) | D13: Itä | E13: Kiri | G13: 1 | J13: 3v | K13: 4 | M13: 1 | P13: 1 | Q13: 4/4 | S13: 2/2 | T13: 2/2 | V13: 100.0 % | W13: Markku Kiiski | X13: 4141
B14: 15.07. 1995 Alajärvi | C14: 1-1 (4-3, 3-4, 0-0) | D14: Itä | E14: Kiri | H14: 1 | J14: 3v | K14: 4 | M14: 1 | O14: 1 | P14: 1 | Q14: 4/10 | S14: 1/2 | T14: 2/6 | U14: 1/2 | V14: 40.0 % | W14: Aulis Väisänen | X14: 4622
B15: Yhteensä | G15: =SUM(G4:G14) -> 5 | H15: =SUM(H4:H14) -> 1 | I15: =SUM(I4:I14) -> 5 | M15: =SUM(M4:M14) -> 11 | N15: 3 | O15: 7 | P15: 10 | Q15: 40/66 | R15: 5/11 | S15: 9/14 | T15: 18/23 | U15: 8/18 | V15: 60.6 %
B16: Ikä ensimmäisessä ottelussa | C16: 19 v 3 kk 19 pv
B18: B-TYTÖT | C18: Itä - Länsi, tulos | D18: Joukkue | E18: Seura | G18: V | H18: T | I18: H | J18: Up. | K18: Lj. | L18: Palk. | M18: O | N18: K | O18: L | P18: T | Q18: KL | R18: 1 | S18: 2 | T18: 3 | U18: k | V18: KL-% | W18: Pelinjohtaja | X18: Yleisöä
B19: 12.07. 1980 Imatra | C19: 12-15 | D19: Itä | E19: Kiri | I19: 1 | K19: vai | M19: 1 | P19: 1 | W19: Osmo Okker
B20: 28.06. 1981 Hyvinkää | C20: 11-12 | D20: Itä | E20: Kiri | I20: 1 | J20: s | K20: 7 | M20: 1 | O20: 1 | P20: 2 | Q20: 5/6 | R20: 2/2 | S20: 1/1 | T20: 1/2 | U20: 1/1 | V20: 83.3 % | W20: Reino Kuivalainen
B21: Yhteensä | I21: 2 | M21: 2 | O21: 1 | P21: 3 | Q21: 5/6 | R21: 2/2 | S21: 1/1 | T21: 1/2 | U21: 1/1 | V21: 83.3 %
B23: LIITTO - LEHDISTÖ - KORTTI
B24: NAISET | C24: Tulos | D24: Joukkue | E24: Seura | G24: V | H24: T | I24: H | J24: Up. | K24: Lj. | L24: Palk. | M24: O | N24: K | O24: L | P24: T | Q24: KL | R24: 1 | S24: 2 | T24: 3 | U24: k | V24: KL-% | W24: Pelinjohtaja | X24: Yleisöä
B25: 19.06. 1988 Vähäkyrö | C25: 11-1 | D25: Lehdistö | E25: Roihu | I25: 1 | J25: 3p | K25: 3 | M25: 1 | P25: 1 | Q25: 2/4 | R25: 1/2 | S25: 1/1 | T25: 0/1 | V25: 50.0 % | W25: Ali Lindström | X25: 209
B26: 18.06. 1989 Vimpeli | C26: 7-13 | D26: Lehdistö | E26: ViU | G26: 1 | K26: vai | M26: 1 | Q26: 1/4 | R26: 1/1 | T26: 0/1 | U26: 0/2 | V26: 25.0 % | W26: Paavo Lakaniemi | X26: 725
B27: 16.06. 1990 Ikaalinen | C27: 1-2 | D27: Liitto | E27: ViU | I27: 1 | J27: s | K27: 4 | M27: 1 | Q27: 3/7 | R27: 0/1 | S27: 2/3 | T27: 1/3 | V27: 42.9 % | W27: Markku Lähteenmäki | X27: 350
B28: 08.06. 1991 Vihti | C28: 12-1 | D28: Liitto | E28: Kiri | G28: 1 | J28: 3p | K28: 4 | L28: II p | M28: 1 | O28: 4 | Q28: 7/9 | T28: 3/4 | U28: 4/5 | V28: 77.8 % | W28: Jari Haapanen | X28: 643
B29: Yhteensä | G29: =SUM(G25:G28) -> 2 | I29: =SUM(I25:I28) -> 2 | M29: =SUM(M25:M28) -> 4 | O29: 4 | P29: 1 | Q29: 13/24 | R29: 2/4 | S29: 3/4 | T29: 4/9 | U29: 4/7 | V29: 54.2 %
B30: Ikä ensimmäisessä ottelussa | C30: 24 v 1 kk 18 pv
